Cogmind - Beta 15 @@@ ROGUE MODE // 2025.09.27 @ 15:33:59 Player: Gruff Result: Destroyed self with Mini Grenade Launcher Performance ------------- Evolutions (2) 1000 Regions Visited (3) 600 Robots Destroyed (119) 595 Value Destroyed (3346) 3346 Prototype IDs (6) 120 Alien Tech Used (0) 0 Bonus (93) 93 TOTAL SCORE: 5754 Bonus ------- High Alert Combat Kills 93 Cogmind --------- Core Integrity 0/550 Matter 156/300 Energy 280/280 System Corruption 2% Temperature Cool (-100) Movement Core (900) Ox17 Location -8/Materials Parts ------- > --- POWER (2) -------- Cooled Ion Engine > --- PROPULSION (2) --- (None) > --- UTILITY (5) ------ Cryofiber Web Improved Heat Sink High-capacity Storage Unit Improved Targeting Computer Particle Charger > --- WEAPON (2) ------- Mini Grenade Launcher > --- INVENTORY (20) --- Cryofiber Web Improved Heat Sink Improved Heat Sink Advanced Heat Sink Trap Scanner Machine Analyzer Improved Sensor Array Improved Signal Interpreter Improved Targeting Computer Improved Targeting Computer Particle Charger Hacking Suite System Shield Datajack Peak State ------------ > --- POWER ------------ Nuclear Core Nuclear Core > --- PROPULSION ------- Armored Wheel Aerolev Unit > --- UTILITY ---------- Advanced Heat Sink High-capacity Storage Unit Improved Targeting Computer Improved Targeting Computer Hardened Light Armor Plating > --- WEAPON ----------- EM Pulse Cannon EM Pulse Cannon > --- INVENTORY -------- Light Deuterium Engine Light Deuterium Engine Improved Hover Unit Improved Hover Unit Improved Heat Sink Improved Sensor Array Improved Signal Interpreter Improved Targeting Computer Improved Targeting Computer Particle Charger Particle Charger Heavy Armor Plating Hacking Suite System Shield Ion Cannon Ion Cannon Ion Cannon Ion Cannon Heavy Missile Launcher [Rating: 35] Favorites ----------- Power Nuclear Core Engine Ion Engine Power Core Nuclear Core Propulsion Armored Wheel Treads Light Treads Leg Aluminum Leg Wheel Armored Wheel Hover Unit Aerolev Unit Utility Improved Targeting Computer Device Improved Heat Sink Storage High-capacity Storage Unit Processor Improved Targeting Computer Protection Hardened Light Armor Plating Weapon Ion Cannon Energy Gun Small Laser Energy Cannon Ion Cannon Launcher Heavy Missile Launcher Build | -11 -10 -9 -8 ------- Run | Yrd Mat Mat Mat Slots Evolved 4 | . . 2 2 Power 1 | . . . 1 Propulsion . | . . . . Utility 3 | . . 2 1 Weapon . | . . . . Parts Attached 64 | 7 9 24 24 Power 13 | 1 . 5 7 Engine 9 | 1 . 5 3 Core 4 | . . . 4 Reactor . | . . . . Propulsion 13 | 3 1 7 2 Treads 7 | 1 1 4 1 Leg 2 | 2 . . . Wheel 3 | . . 3 . Hover 1 | . . . 1 Flight . | . . . . Utility 18 | 1 3 5 9 Device 8 | . . 2 6 Storage 3 | 1 1 1 . Processor 4 | . 2 2 . Hackware . | . . . . Protection 3 | . . . 3 Artifact . | . . . . Weapon 20 | 2 5 7 6 Energy Gun 3 | 2 . 1 . Energy Cannon 15 | . 5 6 4 Ballistic Gun . | . . . . Ballistic Cannon . | . . . . Launcher 2 | . . . 2 Special Weapon . | . . . . Impact Weapon . | . . . . Slashing Weapon . | . . . . Piercing Weapon . | . . . . Special Melee Weapon . | . . . . Unidentified Prototypes 3 | . . . 3 Parts Lost 17 | . 1 2 14 Power 3 | . . . 3 Propulsion 3 | . . . 3 Utility 4 | . . 1 3 Weapon 7 | . 1 1 5 Highest Loss Streak 12 | . 1 1 12 To Critical Strikes . | . . . . Average Backups 14 | 5 7 14 18 Power 1 | . . 2 2 Propulsion 1 | 2 . . 1 Utility 7 | . 5 8 10 Weapon 2 | 1 . 3 3 Tool/Special . | . . . . Unused Backups 40 | 2 7 8 23 Power 5 | . 1 2 2 Propulsion 5 | 2 . . 3 Utility 20 | . 4 3 13 Weapon 9 | . 2 3 4 Tool/Special 1 | . . . 1 Average Slot Usage (%) 96 | . 97 99 94 Engine 7 | . 14 10 1 Core 6 | . . . 16 Treads 6 | . 17 7 . Leg 2 | . 10 . . Wheel 12 | . . 14 17 Device 8 | . . 11 9 Storage 10 | . 14 11 9 Processor 16 | . 12 21 13 Protection 3 | . . . 8 Energy Cannon 20 | . 24 21 17 Peak Build Rating 35 | 6 11 24 35 Average Rating 22 | 5 10 20 33 On Entrance 10 | . 6 11 24 Naked Turns . | . . . . Heaviest Build 82 | 12 33 60 82 Greatest Support 40 | 20 40 40 24 Greatest Overweight (x) 8 | . 1 2 8 Average Overweight (x) 1 | . . 1 2 Largest Inventory Capacity 20 | 8 15 20 20 Average Capacity 16 | 7 10 17 20 Most Carried 20 | 7 10 20 20 Average Carried 14 | 5 7 14 19 Final Capacity 20 | 8 15 20 20 Final Carried 20 | 5 9 20 14 Class Distribution -------------------- 95% | Mutant 4% | Scavenger-Mutant Dominant Class ---------------- Mutant | -10/Materials Mutant | -9/Materials Mutant | -8/Materials Resources | -11 -10 -9 -8 ----------- Run | Yrd Mat Mat Mat Matter Collected 1048 | 270 119 260 399 Remotely . | . . . . Salvage Created 4528 | 247 385 1531 2365 Parts 233 | 16 30 93 94 Haulers Intercepted 11 | . 2 4 5 Recyclers Shooed 2 | . 1 . 1 Parts Field Recycled . | . . . . Retrieved Matter . | . . . . Parts Self-Destructed . | . . . . Prevented . | . . . . Kills | -11 -10 -9 -8 ------- Run | Yrd Mat Mat Mat Combat Hostiles Destroyed 85 | . 11 36 38 Melee 1 | . 1 . . Guns 4 | . 2 2 . Cannons 68 | . 7 33 28 AOE 6 | . . . 6 Classes Destroyed 13 | 2 4 4 3 Worker 3 | . . 2 1 Builder 1 | . 1 . . Tunneler 8 | 8 . . . Hauler 11 | . 2 4 5 Recycler 1 | 1 . . . Operator 3 | . . 2 1 Watcher 7 | . . 3 4 Swarmer 25 | . 6 17 2 Grunt 36 | . 5 10 21 Brawler 1 | . . . 1 Duelist 2 | . . . 2 Sentry 17 | . . 9 8 Specialist 4 | . . . 4 Best Kill Streak 8 | 2 3 7 8 Combat Bots Only 8 | . 3 6 8 Max Kills in Single Turn 2 | 1 1 2 2 Gunslinging . | . . . . Exploded 2 | . . . 2 Melee 1 | . 1 . . Uniques/NPCs Destroyed . | . . . . Combat | -11 -10 -9 -8 -------- Run | Yrd Mat Mat Mat Hostile Shots Fired 415 | . 68 126 221 Missed 99 | . 11 33 55 Hits 316 | . 57 93 166 Melee 10 | . . . 10 Projectile 306 | . 57 93 156 Critical Strikes 12 | . 1 2 9 Damage Taken 4516 | . 510 1017 2989 Core 834 | . 85 175 574 Absorbed by Shields . | . . . . Regen/Repaired (Parts) 232 | . . 65 167 Core Remaining (%) 74 | 100 66 56 . Volleys Fired 270 | 26 30 87 127 Largest 2 | 2 2 2 2 Hottest 136 | 80 136 136 126 Shots Fired 503 | 52 57 173 221 Gun 68 | 52 4 12 . Cannon 426 | . 53 161 212 Launcher 9 | . . . 9 Special . | . . . . Kinetic . | . . . . Thermal 421 | 52 57 173 139 Explosive 9 | . . . 9 Electromagnetic 73 | . . . 73 Robot Hit Streak 17 | 5 6 17 14 Robot Miss Streak 4 | 3 3 4 3 Penetration Max . | . . . . Secondary Targets . | . . . . Shots Hit Robots 329 | 30 33 113 153 Core Hits 145 | 10 13 49 73 Critical Kills 4 | . 1 2 1 Critical Parts Destroyed . | . . . . Critical Strikes 4 | . 1 2 1 Meltdown 4 | . 1 2 1 Melee Attacks . | . . . . Impact . | . . . . Slashing . | . . . . Piercing . | . . . . Sneak Attacks . | . . . . Combat Hostiles . | . . . . Follow-up Attacks . | . . . . Damage Inflicted 8296 | 328 673 2321 4974 Guns 449 | 328 34 87 . Cannons 6481 | . 628 2216 3637 Explosions 1297 | . . . 1297 Melee . | . . . . Ramming 69 | . 11 18 40 Kinetic . | . . . . Thermal 5761 | 328 662 2303 2468 Explosive 1054 | . . . 1054 Electromagnetic 1412 | . . . 1412 Impact . | . . . . Slashing . | . . . . Piercing . | . . . . Highest Corruption 4 | . 4 3 2 Average Corruption 2 | . 3 3 2 Corruption Purged . | . . . . Corruption Blocked . | . . . . Effects 47 | . 15 3 29 Message Errors 4 | . . 1 3 Matter Fused 15 | . 5 1 9 Heat Flow Errors 2 | . . . 2 Energy Discharges 7 | . 1 . 6 Data Loss (minor) 11 | . 5 1 5 Data Loss (major) 2 | . . . 2 Misfires 5 | . 3 . 2 Alerts 1 | . 1 . . Overload Shots . | . . . . Overflow Damage 72 | . 23 5 44 Projectiles 54 | . 23 5 26 Explosions 18 | . . . 18 Melee . | . . . . Knockbacks . | . . . . Impact . | . . . . Kinetic . | . . . . Secondary . | . . . . Self-Inflicted Damage 266 | . . 9 257 Shots 6 | . . . 6 Rammed 6 | . 1 2 3 Targets Rammed 7 | . 2 2 3 Kicked . | . . . . Crushed 1 | . 1 . . Highest Temperature 449 | 126 412 252 449 Average Temperature 99 | 41 158 59 113 Received Heat Transfer 1680 | . 66 273 1341 Effects 12 | . 3 . 9 Shutdowns 4 | . 1 . 3 Energy Bleed 1 | . . . 1 Interference 4 | . . . 4 Short Circuit 2 | . 1 . 1 Damage (minor) 1 | . 1 . . Siege Activations . | . . . . Martial Activations . | . . . . Shielding Activations . | . . . . Robots Disrupted . | . . . . Combat Hostiles . | . . . . Robots Corrupted 3 | . . . 3 Combat Hostiles 2 | . . . 2 Parts Fried 9 | . . . 9 Impact Corruptions . | . . . . Robots Melted 5 | . 1 2 2 Combat Hostiles 4 | . 1 1 2 Parts Melted 24 | 4 . 12 8 Heat Transferred 9933 | 750 1222 4159 3802 Parts Sabotaged . | . . . . Parts Stolen . | . . . . Parts Stripped . | . . . . Power Chain Reactions 4 | . . . 4 Alert | -11 -10 -9 -8 ------- Run | Yrd Mat Mat Mat Maximum Alert Level 2 | . . 1 2 Low Security (%) 79 | 100 100 81 62 Level 1 19 | . . 18 33 Level 2 1 | . . . 3 Level 3 . | . . . . Level 4 . | . . . . Level 5 . | . . . . High Security . | . . . . Max Security . | . . . . Peak Influence 517 | 10 91 349 517 Initial 108 | . . 11 108 Average 120 | . 26 151 164 Influence Increases 2816 | 45 342 1008 1421 Destroy 0b10 Robot/C 1700 | . 220 720 760 Destroy 0b10 Robot/NC 170 | 45 15 55 55 Destroy Leader 446 | . 44 204 198 Successful Hack 41 | . 14 21 6 Disable Machine 60 | . . . 60 Anti-Garrison Action 150 | . . . 150 Destroy Structure 84 | . 4 8 72 Lose Combat Pursuer 165 | . 45 . 120 Influence Decreases 2309 | 45 315 777 1172 Entered New Map 166 | . . 16 150 Time Decay 1523 | 45 305 591 582 Lost Part 170 | . 10 20 140 Purge Threat 450 | . . 150 300 Squads Dispatched 13 | . 1 5 7 Investigation 5 | . 1 3 1 Extermination . | . . . . Reinforcement 5 | . . 2 3 Assault 2 | . . . 2 Garrison 1 | . . . 1 Intercept . | . . . . Searches Triggered . | . . . . Construction Impeded . | . . . . Haulers Reinforced . | . . . . Active Scanning Responses . | . . . . Cargo Convoy Interrupts . | . . . . Stealth | -11 -10 -9 -8 --------- Run | Yrd Mat Mat Mat Distress Signals 3 | . . 2 1 Communications Jammed . | . . . . Distress Signals . | . . . . Times Spotted 131 | . 25 45 61 Peak Tracking Total 6 | . 5 4 6 Tactical Retreats 6 | . 2 . 4 Traps | -11 -10 -9 -8 ------- Run | Yrd Mat Mat Mat Traps Triggered 4 | . 3 . 1 Indirectly . | . . . . Trap Hack Attempts . | . . . . Triggered . | . . . . Disarmed . | . . . . Reprogrammed . | . . . . Reused . | . . . . Traps Extracted . | . . . . Installed . | . . . . Triggered . | . . . . Machines | -11 -10 -9 -8 ---------- Run | Yrd Mat Mat Mat Machines Disabled 6 | . 1 . 5 Max in Single Turn 1 | . 1 . 1 Garrison Access 1 | . . . 1 Machines Repaired . | . . . . Machines Dismantled . | . . . . Machines Sabotaged . | . . . . Overloaded Fab Kills . | . . . . Hacking | -11 -10 -9 -8 --------- Run | Yrd Mat Mat Mat Machines Accessed 32 | . 8 13 11 Terminals 24 | . 7 9 8 Fabricators . | . . . . Repair Stations 3 | . . 1 2 Recycling Units 2 | . 1 1 . Scanalyzers 3 | . . 2 1 Garrison Access . | . . . . Total Hacks 90 | . 23 37 30 Successful 63 | . 12 26 25 Failed 27 | . 11 11 5 Catastrophic 1 | . 1 . . Database Lockouts . | . . . . Manual 51 | . 17 19 15 Terminals 73 | . 22 30 21 Fabricators . | . . . . Repair Stations 9 | . . 2 7 Recycling Units 2 | . 1 1 . Scanalyzers 6 | . . 4 2 Garrison Access . | . . . . Terminal Hacks 18 | . 3 7 8 Prototype ID Bank 2 | . 1 1 . Terminal Index 2 | . 1 1 . Alert Level 4 | . 1 1 2 Unreport Threat 3 | . . 1 2 Locate Traps 1 | . . . 1 Dispatch Records 1 | . . 1 . Hauler Manifests 2 | . . 1 1 Registered Components 1 | . . . 1 Zone Layout 2 | . . 1 1 Fabricator Hacks . | . . . . Repair Station Hacks 8 | . . 2 6 Scan Component 4 | . . 1 3 Repair 4 | . . 1 3 Recycling Unit Hacks 2 | . 1 1 . Report Inventory 2 | . 1 1 . Scanalyzer 6 | . . 4 2 Insert Component 3 | . . 2 1 Analyze 3 | . . 2 1 Garrison Access Hacks . | . . . . Unauthorized Hacks 29 | . 8 12 9 Terminals 29 | . 8 12 9 Botnet 11 | . 2 5 4 Skim 18 | . 6 7 5 Fabricators . | . . . . Repair Stations . | . . . . Recycling Units . | . . . . Scanalyzers . | . . . . Garrison Access . | . . . . Data Cores Recovered . | . . . . Used . | . . . . Hacking Detections 24 | . 6 9 9 Full Trace Events 6 | . 2 3 1 Feedback Events . | . . . . Feedback Blocked . | . . . . Robot Schematics Acquired . | . . . . Robots Built . | . . . . Authchips . | . . . . Time . | . . . . Total Robot Build Rating . | . . . . Part Schematics Acquired 3 | . . 2 1 Parts Built . | . . . . Authchips . | . . . . Time . | . . . . Total Part Build Rating . | . . . . Parts Repaired 4 | . . 1 3 Time 134 | . . 32 102 Parts Recycled . | . . . . Recycled Matter . | . . . . Retrieved Matter . | . . . . Retrieved Components . | . . . . Parts Scanalyzed 3 | . . 2 1 Part Schematics Acquired 3 | . . 2 1 Parts Damaged . | . . . . Bothacking | -11 -10 -9 -8 ------------ Run | Yrd Mat Mat Mat Used RIF Installer . | . . . . Robots Hacked . | . . . . Non-combat . | . . . . Combat . | . . . . Robot Hacks Applied . | . . . . Relay Couplers Released 2 | . . . 2 Machine Destruction 2 | . . . 2 Fabnet Peak Effective % . | . . . . Robots Rewired . | . . . . Allies Hacked . | . . . . Hacks Repelled . | . . . . Allies | -11 -10 -9 -8 -------- Run | Yrd Mat Mat Mat Total Allies . | . . . . Largest Group . | . . . . Highest-Rated Group . | . . . . Highest-Rated Ally . | . . . . Total Orders . | . . . . Ally Attacks . | . . . . Total Damage . | . . . . Kills . | . . . . Allies Corrupted . | . . . . Allies Melted . | . . . . Intel | -11 -10 -9 -8 ------- Run | Yrd Mat Mat Mat Active Infowar (turns) . | . . . . Robot Analysis Total . | . . . . Derelict Logs Recovered . | . . . . Drone Launches . | . . . . Drone Recoveries . | . . . . Exploration | -11 -10 -9 -8 ------------- Run | Yrd Mat Mat Mat Turns Passed 6111 | 597 1039 2106 2369 Spaces Moved 2922 | 202 582 962 1176 Core 2 | 2 . . . Treads 632 | 3 348 279 2 Legs 431 | 197 234 . . Wheels 1855 | . . 683 1172 Hover 2 | . . . 2 Flight . | . . . . Fastest Speed 50 | 50 120 105 120 Average Speed 131 | 119 152 128 127 Slowest Speed 535 | 160 190 160 535 Overloaded Moves . | . . . . Propulsion Burnouts . | . . . . Robots Hopped . | . . . . Potential Cave-ins . | . . . . Cave-ins Triggered . | . . . . Exploration Rate (%) 64 | 8 80 85 83 Regions Visited 3 Branch Regions . Pre-discovered Areas 3 | . 1 2 . Known Exits Taken 1 | . . 1 . Unknown Exits Taken 2 | 1 1 . . Scrap Searched . | . . . . Spaces Dug 1 | . . . 1 Terrain Destroyed 89 | . . . 89 Melee . | . . . . Projectile 10 | . . . 10 AOE 79 | . . . 79 Terrain Rammed . | . . . . Walls Destroyed . | . . . . Machines Disabled . | . . . . Actions | -11 -10 -9 -8 --------- Run | Yrd Mat Mat Mat Total 4690 | 502 687 1667 1834 Wait 1275 | 259 36 542 438 Move 2919 | 201 581 961 1176 Hop . | . . . . Pick Up 67 | 7 15 26 19 Fast Attach 17 | 6 1 1 9 Attach 15 | . 1 4 10 Detach 1 | . . . 1 Swap 54 | 1 8 20 25 Drop 65 | 2 13 24 26 Fire 270 | 26 30 87 127 Melee . | . . . . Ram 5 | . . 2 3 Kick . | . . . . Crush 2 | . 2 . . Escape Stasis . | . . . . Rewire . | . . . . Trap . | . . . . Miscellaneous . | . . . . Route ------- -11/Scrapyard -10/Materials (discovered 3 exits: *Mat x2 / [*Min]) -9/Materials (discovered 4 exits: *Mat x3 / *Min) -8/Materials (discovered 5 exits: *Fac x3 / *Sto x2) History --------- Turn | Location | Event 7 | -11/Scrapyard | Discovered new exit (range 15) 598 | -11/Scrapyard | Entered Materials 599 | -10/Materials | Build established: Mutant 787 | -10/Materials | Discovered new exit (range 7) 1296 | -10/Materials | Discovered new exit (range 8) 1325 | -10/Materials | Learned 2 Storage zone layouts 1403 | -10/Materials | Loaded intel: 10 trap records 1437 | -10/Materials | Learned 2 Storage zone layouts 1458 | -10/Materials | Learned 2 Storage zone layouts 1631 | -10/Materials | Discovered new exit (range 3) 1637 | -10/Materials | Entered another Materials area 1637 | -9/Materials | Evolved 2 slots: Utility x2 1638 | -9/Materials | Identified exit to Mines 2452 | -9/Materials | Discovered new exit (range 14) 2770 | -9/Materials | Repaired Imp. Ion Engine 2798 | -9/Materials | Discovered new exit (range 16) 3430 | -9/Materials | Learned 2 Storage zone layouts 3467 | -9/Materials | Identified exit to Materials 3524 | -9/Materials | Learned location of 2 exits from Materials 3743 | -9/Materials | Entered another Materials area 3743 | -8/Materials | Evolved 2 slots: Power x1, Utility x1 3744 | -8/Materials | Identified exit to Storage 3745 | -8/Materials | Identified exit to Factory 4951 | -8/Materials | Repaired Nuclear Core 5193 | -8/Materials | Learned Factory emergency access door positions 5266 | -8/Materials | Learned Factory stockpile data 5286 | -8/Materials | Learned Storage emergency access door positions 5294 | -8/Materials | Learned Factory garrison access intel 5295 | -8/Materials | Learned location of 1 exit from Recycling 5303 | -8/Materials | Learned location of 2 exits from Factory 5323 | -8/Materials | Learned Factory trap positions 5374 | -8/Materials | Discovered exit to Factory (range 15) 5490 | -8/Materials | Repaired Arm. Wheel 5524 | -8/Materials | Repaired Arm. Wheel 5635 | -8/Materials | Discovered exit to Storage (range 16) 5981 | -8/Materials | Garrison activated, responded to threat 5990 | -8/Materials | Core integrity fell below 50% 6104 | -8/Materials | Core integrity fell below 20% 6112 | -8/Materials | Destroyed self with Mini Grenade Launcher Last Messages --------------- L-31 Rogue unfolds itself. M-28 Smith unfolds itself. Arm. Wheel destroyed. The unstable cave ceiling collapses. G-47 Trooper destroyed. System corrupted: Heat flow error (+219). R-06 Scavenger collects Hpw. Shotgun. Nuclear Core destroyed. L-31 Rogue destroyed. R-06 Scavenger collects Particle Gun. Ion Cannon destroyed. Acquired Cryofiber Web. R-06 Scavenger collects Lgt. Nuclear Core. R-06 Scavenger collects Aluminum Leg. Acquired Mni. Grenade Launcher. B-36 Bruiser destroyed. The unstable cave ceiling collapses. System corrupted: Matter fused (-8). Arm. Treads destroyed. Destroyed Arm. Treads. Map ----- +----------------------------------------------------+ | ?????????????????????????????????????????????????? | | ?????????????????????????????????????????????????? | | ?????????????????????????????????????????????????? | | ??????????????????????????#####??????????????????? | | ??????????????????????????# ??????????????????? | | ???????????????????????# ??????????????????? | | ???????????????????????? ??????????????????? | | ???????????????????????? ??????????????????? | | ????????????????????????# #????######????????? | | #???????????????????????# #????? ????????? | | #???????????????????????# #????? ????????? | | ##??????????????????????#r ????? ????????? | | #?????????????????????#% ?? #????????? | | #?????????????????????# # ##+###???????? | | !%= #?????????????????????# #???????? | | [ ??????????????????????# % u =%%#?######? | | ?????????????????????## % %## ####%=###"## ## | | ^ ########????????????### # ###?##% ## # | | # ! #????????????# # #?##==## # | | # #????????????# " / #?##=%##!! # | | + #???????????## % #?##*=##=%" # | | # #??????????## g %#??# # ["" # | | #!/ #??????????# = %[ [##??# # "" /# | | #!/ #??????????# m #???# > + """ # | | ########??????????# l = " #???# # "" # | | # #??????????????# *@ ! #???## ## """ # | | # #??????????????# ####????# ## """ # | | #?????????????## #???????# ## """ # | | # #??????????????## ##???????# ## " # | | #####??????????????########????????# ## # | | #??????????????????# ########??# ######### | | #??????????????????# #??# # """ #? | | #???????########???# #??# + """ #? | | #???????#//!!]]#???# #??# # """ #? | | #???????#//!! #???# ########??# #?? #? | | #???????# #???## ##?????????# #???? #? | | #??????## ###????# #??????????# #??????#? | | #??????# ######## ############ ######### | | # ##??????# % #* * # | | # #???????# % # # | | #%#???????# ############ # """# | | # #???????# ######## # #?# # """# | | # #???????## ######### # #?# + """# | | #%########## # # # #?# # """# | | # ## # # ] # # ** #?# # """# | | #/## + # + + #?# # # | | % + # # """ # #! #?# # [ # | | # # #! """ # # * #?# # # | | ####+#### # """ # # ! ### + # | | ## T ] # ######### # ##"[%######### | +----------------------------------------------------+ Best States ------------- Heat Dissipation 59 Energy Generation 23 Energy Capacity 420 Matter Stores 300 Matter Capacity 300 Sight Range 16 Terrain Scan Density 10 Base Temperature (-) 100 Armor Coverage 600 Evasion (%) 55 Targeting Accuracy 12 Recoil Reduction 2 Particle Charging 15 Item Schematics ----------------- Imp. Targeting Computer | -9/Materials | Scanalyzed Hacking Suite | -9/Materials | Scanalyzed Aerolev Unit | -8/Materials | Scanalyzed Robot Schematics ------------------ None Fabricated ------------ Nothing Repaired ---------- Imp. Ion Engine | 7% | -9/Materials Nuclear Core | 38% | -8/Materials Arm. Wheel | 33% | -8/Materials Arm. Wheel | 46% | -8/Materials Alien Tech Used ----------------- None Achievements -------------- None Challenges ------------ None Game ------ Seed GravitonFieldthrustPlatform Manual? 0 Play Time 00:53:53 Cumulative 52.9 hours Start 2025.09.27 @ 14:40:37 End 2025.09.27 @ 15:33:59 Sessions 1 Manual Loads 0 Difficulty Rogue Special Mode None Game No. 67 Rogue 67 Adventurer 0 Explorer 0 Win Type - Total 0 Types 0/0/0/0/0/0/0/0/0/0 Lore% 35 Gallery% 34 Achievement% 30 Wizard Run 0 Options --------- Layout 0 ASCII 0 Keyboard 1 Movement Numpad Keybinds 0 Fullscreen 1 Font 24/Smallcaps Map View 183x50 Zoom Use 0% Tactical HUD 0 Map Filters NONE Filters NONE Steam 1 RUN: 0e71b2b7-a1cf-4678-815a-a17cf7ba1d36